[Event "January 2 Early 2024"]
[Site "https://www.chess.com"]
[Date "2024.01.02"]
[Round "10"]
[White "Movahed, Sina"]
[Black "Sadhwani, Raunak"]
[Result "0-1"]
[Board "4"]
[TimeControl "180+1"]
[WhiteFideId "42520835"]
[BlackFideId "35093487"]
[WhiteElo "3014"]
[BlackElo "3084"]
[WhiteTeam "IRI"]
[BlackTeam "IND"]
[WhiteClock "0:00:03"]
[BlackClock "0:00:08"]

1. Nf3 {[%clk 0:03:00]}  d5 {[%clk 0:02:59]} 2. c4 {[%clk 0:03:00]}  d4 {[%clk 0:02:59]} 3. b4 {[%clk 0:02:59]}  c5 {[%clk 0:02:57]} 4. e3 {[%clk 0:02:58]}  Nf6 {[%clk 0:02:53]} 5. b5 {[%clk 0:02:54]}  Qc7 {[%clk 0:02:51]} 6. g3 {[%clk 0:02:49]}  e5 {[%clk 0:02:51]} 7. d3 {[%clk 0:02:49]}  Be7 {[%clk 0:02:49]} 8. Bg2 {[%clk 0:02:49]}  O-O {[%clk 0:02:49]} 9. O-O {[%clk 0:02:49]}  a6 {[%clk 0:02:49]} 10. b6 {[%clk 0:02:47]}  Qd6 {[%clk 0:02:45]} 11. exd4 {[%clk 0:02:47]}  cxd4 {[%clk 0:02:35]} 12. Ba3 {[%clk 0:02:45]}  Qd8 {[%clk 0:02:32]} 13. Re1 {[%clk 0:02:30]}  Bxa3 {[%clk 0:02:26]} 14. Nxa3 {[%clk 0:02:31]}  Nc6 {[%clk 0:02:26]} 15. c5 {[%clk 0:02:21]}  Nd7 {[%clk 0:02:06]} 16. Nc4 {[%clk 0:02:19]}  e4 {[%clk 0:01:55]} 17. Rxe4 {[%clk 0:02:12]}  Nxc5 {[%clk 0:01:55]} 18. Re1 {[%clk 0:02:11]}  Be6 {[%clk 0:01:53]} 19. Nfe5 {[%clk 0:01:44]}  Nxe5 {[%clk 0:01:29]} 20. Rxe5 {[%clk 0:01:45]}  Nd7 {[%clk 0:01:25]} 21. Rxe6 {[%clk 0:01:06]}  fxe6 {[%clk 0:01:26]} 22. Bxb7 {[%clk 0:01:06]}  Rb8 {[%clk 0:01:24]} 23. Be4 {[%clk 0:01:06]}  Nxb6 {[%clk 0:01:03]} 24. Qh5 {[%clk 0:01:01]}  h6 {[%clk 0:01:02]} 25. Qg6 {[%clk 0:00:43]}  Qf6 {[%clk 0:00:48]} 26. Qh7+ {[%clk 0:00:43]}  Kf7 {[%clk 0:00:49]} 27. Nxb6 {[%clk 0:00:33]}  Rxb6 {[%clk 0:00:42]} 28. Rc1 {[%clk 0:00:32]}  Ke7 {[%clk 0:00:39]} 29. f4 {[%clk 0:00:29]}  Rd6 {[%clk 0:00:31]} 30. Rc7+ {[%clk 0:00:23]}  Rd7 {[%clk 0:00:31]} 31. Rc6 {[%clk 0:00:23]}  Rb8 {[%clk 0:00:29]} 32. Kg2 {[%clk 0:00:23]}  Rd6 {[%clk 0:00:27]} 33. Rc7+ {[%clk 0:00:22]}  Rd7 {[%clk 0:00:27]} 34. Rc6 {[%clk 0:00:23]}  Rbd8 {[%clk 0:00:24]} 35. Rxa6 {[%clk 0:00:19]}  Rb8 {[%clk 0:00:19]} 36. a4 {[%clk 0:00:18]}  Rc7 {[%clk 0:00:18]} 37. f5 {[%clk 0:00:15]}  Rc2+ {[%clk 0:00:11]} 38. Kh3 {[%clk 0:00:15]}  Qg5 {[%clk 0:00:11]} 39. Rxe6+ {[%clk 0:00:08]}  Kf7 {[%clk 0:00:11]} 40. Qg6+ {[%clk 0:00:05]}  Qxg6 {[%clk 0:00:12]} 41. Rxg6 {[%clk 0:00:06]}  Rbb2 {[%clk 0:00:12]} 42. Bd5+ {[%clk 0:00:07]}  Kf8 {[%clk 0:00:12]} 43. a5 {[%clk 0:00:07]}  Rxh2+ {[%clk 0:00:12]} 44. Kg4 {[%clk 0:00:08]}  Rb5 {[%clk 0:00:12]} 45. Bc4 {[%clk 0:00:04]}  Rxa5 {[%clk 0:00:13]} 46. Rd6 {[%clk 0:00:05]}  Rf2 {[%clk 0:00:11]} 47. Be6 {[%clk 0:00:05]}  g6 {[%clk 0:00:09]} 48. fxg6 {[%clk 0:00:04]}  Rg5+ {[%clk 0:00:10]} 49. Kh4 {[%clk 0:00:05]}  Rxg6 {[%clk 0:00:08]} 50. Rc6 {[%clk 0:00:03]}  Rh2+ {[%clk 0:00:08]} 0-1

[Event "January 2 Early 2024"]
[Site "https://www.chess.com"]
[Date "2024.01.02"]
[Round "10"]
[White "Firouzja, Alireza"]
[Black "Drygalov, Sergey"]
[Result "1-0"]
[Board "5"]
[TimeControl "180+1"]
[WhiteFideId "12573981"]
[BlackFideId "24171743"]
[WhiteElo "3151"]
[BlackElo "2958"]
[WhiteTeam "FRA"]
[BlackTeam "RUS"]
[WhiteClock "0:00:51"]
[BlackClock "0:00:06"]

1. d4 {[%clk 0:03:00]}  d5 {[%clk 0:02:58]} 2. c4 {[%clk 0:03:00]}  c6 {[%clk 0:02:59]} 3. Nc3 {[%clk 0:03:00]}  Nf6 {[%clk 0:02:59]} 4. Nf3 {[%clk 0:02:59]}  e6 {[%clk 0:02:59]} 5. g3 {[%clk 0:03:00]}  Nbd7 {[%clk 0:02:59]} 6. Bg2 {[%clk 0:03:00]}  dxc4 {[%clk 0:02:59]} 7. O-O {[%clk 0:03:00]}  b5 {[%clk 0:02:59]} 8. e4 {[%clk 0:02:57]}  Bb7 {[%clk 0:02:54]} 9. e5 {[%clk 0:02:57]}  Nd5 {[%clk 0:02:54]} 10. Ng5 {[%clk 0:02:57]}  h6 {[%clk 0:02:54]} 11. Nxe6 {[%clk 0:02:57]}  fxe6 {[%clk 0:02:54]} 12. Qh5+ {[%clk 0:02:58]}  Ke7 {[%clk 0:02:53]} 13. Ne4 {[%clk 0:02:58]}  Qe8 {[%clk 0:02:33]} 14. Bg5+ {[%clk 0:02:58]}  hxg5 {[%clk 0:02:31]} 15. Qxh8 {[%clk 0:02:58]}  Kd8 {[%clk 0:02:29]} 16. Nxg5 {[%clk 0:02:58]}  Kc8 {[%clk 0:02:22]} 17. Bh3 {[%clk 0:02:55]}  Nc7 {[%clk 0:02:19]} 18. f4 {[%clk 0:02:53]}  g6 {[%clk 0:02:11]} 19. Qg8 {[%clk 0:02:49]}  c5 {[%clk 0:02:05]} 20. d5 {[%clk 0:02:45]}  Bxd5 {[%clk 0:02:04]} 21. Rad1 {[%clk 0:02:44]}  Kb7 {[%clk 0:02:04]} 22. Qh7 {[%clk 0:02:28]}  Be7 {[%clk 0:01:46]} 23. Nf7 {[%clk 0:02:23]}  Qg8 {[%clk 0:01:38]} 24. Nd6+ {[%clk 0:02:21]}  Bxd6 {[%clk 0:01:31]} 25. Qxg8 {[%clk 0:02:22]}  Rxg8 {[%clk 0:01:30]} 26. exd6 {[%clk 0:02:22]}  Ne8 {[%clk 0:01:23]} 27. Rxd5 {[%clk 0:02:19]}  exd5 {[%clk 0:01:19]} 28. Bxd7 {[%clk 0:02:20]}  Nf6 {[%clk 0:01:10]} 29. Bxb5 {[%clk 0:02:15]}  Kb6 {[%clk 0:01:08]} 30. Ba4 {[%clk 0:02:13]}  d4 {[%clk 0:01:00]} 31. d7 {[%clk 0:02:09]}  Ka5 {[%clk 0:00:53]} 32. Bc6 {[%clk 0:01:57]}  Kb6 {[%clk 0:00:54]} 33. Bf3 {[%clk 0:01:58]}  Rd8 {[%clk 0:00:40]} 34. Rc1 {[%clk 0:01:57]}  Kb5 {[%clk 0:00:37]} 35. g4 {[%clk 0:01:46]}  Rxd7 {[%clk 0:00:37]} 36. g5 {[%clk 0:01:13]}  Nd5 {[%clk 0:00:37]} 37. f5 {[%clk 0:01:13]}  gxf5 {[%clk 0:00:34]} 38. Bxd5 {[%clk 0:01:14]}  Rxd5 {[%clk 0:00:35]} 39. h4 {[%clk 0:01:15]}  f4 {[%clk 0:00:34]} 40. g6 {[%clk 0:01:12]}  Rd6 {[%clk 0:00:27]} 41. h5 {[%clk 0:01:04]}  Rd5 {[%clk 0:00:27]} 42. Kf2 {[%clk 0:00:54]}  Rg5 {[%clk 0:00:22]} 43. Rh1 {[%clk 0:00:50]}  c3 {[%clk 0:00:19]} 44. bxc3 {[%clk 0:00:50]}  dxc3 {[%clk 0:00:19]} 45. h6 {[%clk 0:00:50]}  c2 {[%clk 0:00:12]} 46. h7 {[%clk 0:00:50]}  Rh5 {[%clk 0:00:09]} 47. Rc1 {[%clk 0:00:51]}  Kb4 {[%clk 0:00:06]} 48. g7 {[%clk 0:00:51]}  Kc3 {[%clk 0:00:06]} 49. h8=Q {[%clk 0:00:50]}  Rd5 {[%clk 0:00:05]} 50. g8=Q+ {[%clk 0:00:51]}  Rd4 {[%clk 0:00:06]} 51. Qb3+ {[%clk 0:00:50]}  Kd2 {[%clk 0:00:06]} 52. Qxc2# {[%clk 0:00:51]} 1-0

[Event "January 2 Early 2024"]
[Site "https://www.chess.com"]
[Date "2024.01.02"]
[Round "10"]
[White "Klimkowski, Jan"]
[Black "Paravyan, David"]
[Result "0-1"]
[Board "7"]
[TimeControl "180+1"]
[WhiteFideId "21856222"]
[BlackFideId "4194985"]
[WhiteElo "2941"]
[BlackElo "3097"]
[WhiteTeam "POL"]
[BlackTeam "FID"]
[WhiteClock "0:00:12"]
[BlackClock "0:00:33"]

1. Nf3 {[%clk 0:02:54]}  d5 {[%clk 0:02:59]} 2. d4 {[%clk 0:02:54]}  Nf6 {[%clk 0:02:59]} 3. c4 {[%clk 0:02:54]}  dxc4 {[%clk 0:03:00]} 4. e3 {[%clk 0:02:50]}  e6 {[%clk 0:03:00]} 5. Bxc4 {[%clk 0:02:50]}  c5 {[%clk 0:03:01]} 6. O-O {[%clk 0:02:50]}  Nc6 {[%clk 0:03:02]} 7. Nc3 {[%clk 0:02:49]}  a6 {[%clk 0:03:01]} 8. a4 {[%clk 0:02:48]}  Be7 {[%clk 0:02:58]} 9. Qe2 {[%clk 0:02:45]}  cxd4 {[%clk 0:02:58]} 10. Rd1 {[%clk 0:02:43]}  e5 {[%clk 0:02:49]} 11. exd4 {[%clk 0:02:43]}  exd4 {[%clk 0:02:50]} 12. Nxd4 {[%clk 0:02:09]}  Nxd4 {[%clk 0:02:51]} 13. Qe5 {[%clk 0:02:08]}  Qd6 {[%clk 0:02:51]} 14. Qxd6 {[%clk 0:02:06]}  Bxd6 {[%clk 0:02:52]} 15. Rxd4 {[%clk 0:02:07]}  Be5 {[%clk 0:02:52]} 16. Rd1 {[%clk 0:02:04]}  O-O {[%clk 0:02:52]} 17. h3 {[%clk 0:01:58]}  Bf5 {[%clk 0:02:38]} 18. Be3 {[%clk 0:01:55]}  Rac8 {[%clk 0:02:35]} 19. Bd3 {[%clk 0:01:56]}  Bxd3 {[%clk 0:02:32]} 20. Rxd3 {[%clk 0:01:57]}  Rfd8 {[%clk 0:02:32]} 21. Rad1 {[%clk 0:01:56]}  Rxd3 {[%clk 0:02:31]} 22. Rxd3 {[%clk 0:01:57]}  h6 {[%clk 0:02:27]} 23. Bd2 {[%clk 0:01:55]}  Kf8 {[%clk 0:02:20]} 24. b3 {[%clk 0:01:52]}  Ke7 {[%clk 0:02:11]} 25. Kf1 {[%clk 0:01:52]}  Ke6 {[%clk 0:01:51]} 26. f4 {[%clk 0:01:34]}  Bb8 {[%clk 0:01:21]} 27. g4 {[%clk 0:01:30]}  g6 {[%clk 0:01:20]} 28. Ke2 {[%clk 0:01:23]}  h5 {[%clk 0:01:20]} 29. Re3+ {[%clk 0:01:10]}  Kd7 {[%clk 0:01:19]} 30. g5 {[%clk 0:01:08]}  Ng8 {[%clk 0:01:16]} 31. Nd5 {[%clk 0:00:53]}  Ba7 {[%clk 0:01:06]} 32. Rd3 {[%clk 0:00:50]}  Ke6 {[%clk 0:01:03]} 33. Ba5 {[%clk 0:00:38]}  Rc5 {[%clk 0:00:54]} 34. Bb6 {[%clk 0:00:27]}  Rxd5 {[%clk 0:00:51]} 35. Bxa7 {[%clk 0:00:28]}  Rxd3 {[%clk 0:00:50]} 36. Kxd3 {[%clk 0:00:29]}  Kd5 {[%clk 0:00:50]} 37. Bd4 {[%clk 0:00:25]}  Ne7 {[%clk 0:00:51]} 38. Bf6 {[%clk 0:00:22]}  Nf5 {[%clk 0:00:50]} 39. Bc3 {[%clk 0:00:22]}  Nd6 {[%clk 0:00:48]} 40. Be1 {[%clk 0:00:19]}  Ne4 {[%clk 0:00:46]} 41. Ke3 {[%clk 0:00:18]}  Nc5 {[%clk 0:00:45]} 42. f5 {[%clk 0:00:14]}  gxf5 {[%clk 0:00:41]} 43. Kf4 {[%clk 0:00:14]}  Nd3+ {[%clk 0:00:37]} 44. Kxf5 {[%clk 0:00:14]}  Nxe1 {[%clk 0:00:37]} 45. Kf6 {[%clk 0:00:14]}  Nf3 {[%clk 0:00:38]} 46. Kf5 {[%clk 0:00:11]}  b5 {[%clk 0:00:33]} 47. axb5 {[%clk 0:00:11]}  axb5 {[%clk 0:00:34]} 48. Kf4 {[%clk 0:00:12]}  Nd4 {[%clk 0:00:34]} 49. b4 {[%clk 0:00:13]}  Ke6 {[%clk 0:00:33]} 50. Ke4 {[%clk 0:00:12]}  Nc6 {[%clk 0:00:33]} 0-1

[Event "January 2 Early 2024"]
[Site "https://www.chess.com"]
[Date "2024.01.02"]
[Round "10"]
[White "Vokhidov, Shamsiddin"]
[Black "Pranav Anand"]
[Result "1-0"]
[Board "9"]
[TimeControl "180+1"]
[WhiteFideId "14204223"]
[BlackFideId "46626786"]
[WhiteElo "2984"]
[BlackElo "2934"]
[WhiteTeam "UZB"]
[BlackTeam "IND"]
[WhiteClock "0:01:38"]
[BlackClock "0:01:07"]

1. e4 {[%clk 0:03:00]}  e5 {[%clk 0:02:59]} 2. Nf3 {[%clk 0:03:01]}  Nc6 {[%clk 0:02:59]} 3. Bb5 {[%clk 0:03:02]}  a6 {[%clk 0:02:59]} 4. Ba4 {[%clk 0:03:02]}  Nf6 {[%clk 0:03:00]} 5. O-O {[%clk 0:03:03]}  Be7 {[%clk 0:03:00]} 6. Re1 {[%clk 0:03:03]}  b5 {[%clk 0:03:01]} 7. Bb3 {[%clk 0:03:04]}  d6 {[%clk 0:03:00]} 8. a4 {[%clk 0:03:04]}  Bb7 {[%clk 0:02:56]} 9. d3 {[%clk 0:03:03]}  O-O {[%clk 0:02:55]} 10. Nc3 {[%clk 0:03:03]}  Na5 {[%clk 0:02:52]} 11. Ba2 {[%clk 0:03:01]}  b4 {[%clk 0:02:52]} 12. Ne2 {[%clk 0:03:01]}  c5 {[%clk 0:02:49]} 13. Ng3 {[%clk 0:03:01]}  Bc8 {[%clk 0:02:50]} 14. c3 {[%clk 0:02:50]}  Rb8 {[%clk 0:02:49]} 15. d4 {[%clk 0:02:48]}  b3 {[%clk 0:02:25]} 16. Bb1 {[%clk 0:02:46]}  exd4 {[%clk 0:02:22]} 17. cxd4 {[%clk 0:02:46]}  Bg4 {[%clk 0:02:23]} 18. d5 {[%clk 0:02:34]}  Nd7 {[%clk 0:02:19]} 19. h3 {[%clk 0:02:32]}  Bxf3 {[%clk 0:02:18]} 20. Qxf3 {[%clk 0:02:33]}  Ne5 {[%clk 0:02:17]} 21. Qe2 {[%clk 0:02:33]}  Bf6 {[%clk 0:02:16]} 22. Nh5 {[%clk 0:02:19]}  Nec4 {[%clk 0:02:09]} 23. Bd3 {[%clk 0:02:17]}  Rb4 {[%clk 0:02:07]} 24. Nxf6+ {[%clk 0:02:12]}  Qxf6 {[%clk 0:02:08]} 25. Rd1 {[%clk 0:02:00]}  Re8 {[%clk 0:02:00]} 26. g3 {[%clk 0:01:59]}  h6 {[%clk 0:01:50]} 27. h4 {[%clk 0:01:59]}  Ne5 {[%clk 0:01:38]} 28. Bb1 {[%clk 0:01:50]}  Nf3+ {[%clk 0:01:36]} 29. Kg2 {[%clk 0:01:48]}  Nd4 {[%clk 0:01:36]} 30. Qd3 {[%clk 0:01:43]}  Nc2 {[%clk 0:01:29]} 31. Bxc2 {[%clk 0:01:43]}  bxc2 {[%clk 0:01:30]} 32. Qxc2 {[%clk 0:01:44]}  Nb3 {[%clk 0:01:29]} 33. Ra3 {[%clk 0:01:41]}  Nxc1 {[%clk 0:01:29]} 34. Qxc1 {[%clk 0:01:41]}  Rexe4 {[%clk 0:01:29]} 35. Rd2 {[%clk 0:01:37]}  Rxa4 {[%clk 0:01:21]} 36. Rxa4 {[%clk 0:01:38]}  Rxa4 {[%clk 0:01:20]} 37. Qe1 {[%clk 0:01:38]}  g6 {[%clk 0:01:13]} 38. Qe8+ {[%clk 0:01:37]}  Kg7 {[%clk 0:01:07]} 39. Qxa4 {[%clk 0:01:38]} 1-0

[Event "January 2 Early 2024"]
[Site "https://www.chess.com"]
[Date "2024.01.02"]
[Round "10"]
[White "Praggnanandhaa R"]
[Black "Zou, Chen"]
[Result "0-1"]
[Board "11"]
[TimeControl "180+1"]
[WhiteFideId "25059530"]
[BlackFideId "8610959"]
[WhiteElo "2952"]
[BlackElo "2794"]
[WhiteTeam "IND"]
[BlackTeam "CHN"]
[WhiteClock "0:00:00"]
[BlackClock "0:00:05"]

1. Nf3 {[%clk 0:03:00]}  d5 {[%clk 0:02:58]} 2. e3 {[%clk 0:02:59]}  Nf6 {[%clk 0:02:47]} 3. b3 {[%clk 0:02:57]}  Bf5 {[%clk 0:02:45]} 4. Bb2 {[%clk 0:02:56]}  e6 {[%clk 0:02:41]} 5. g3 {[%clk 0:02:53]}  h6 {[%clk 0:02:39]} 6. Bg2 {[%clk 0:02:52]}  Be7 {[%clk 0:02:40]} 7. O-O {[%clk 0:02:52]}  O-O {[%clk 0:02:40]} 8. d3 {[%clk 0:02:51]}  Bh7 {[%clk 0:02:39]} 9. Nbd2 {[%clk 0:02:51]}  c6 {[%clk 0:02:39]} 10. Qe2 {[%clk 0:02:50]}  Nbd7 {[%clk 0:02:39]} 11. e4 {[%clk 0:02:48]}  a5 {[%clk 0:02:35]} 12. a4 {[%clk 0:02:48]}  Nc5 {[%clk 0:02:22]} 13. e5 {[%clk 0:02:47]}  Nfd7 {[%clk 0:02:22]} 14. Nd4 {[%clk 0:02:47]}  Na6 {[%clk 0:02:21]} 15. f4 {[%clk 0:02:44]}  Nc7 {[%clk 0:02:09]} 16. Kh1 {[%clk 0:02:28]}  Re8 {[%clk 0:01:52]} 17. f5 {[%clk 0:02:21]}  c5 {[%clk 0:01:48]} 18. fxe6 {[%clk 0:02:20]}  fxe6 {[%clk 0:01:49]} 19. Nb5 {[%clk 0:02:18]}  Nxb5 {[%clk 0:01:48]} 20. axb5 {[%clk 0:02:19]}  Rf8 {[%clk 0:01:36]} 21. Qg4 {[%clk 0:01:58]}  Bf5 {[%clk 0:01:19]} 22. Rxf5 {[%clk 0:01:58]}  exf5 {[%clk 0:01:17]} 23. Bxd5+ {[%clk 0:01:58]}  Kh7 {[%clk 0:01:12]} 24. Qf3 {[%clk 0:01:55]}  Qc7 {[%clk 0:01:01]} 25. e6 {[%clk 0:01:37]}  Ne5 {[%clk 0:00:53]} 26. Qg2 {[%clk 0:01:20]}  Ng4 {[%clk 0:00:48]} 27. Bxb7 {[%clk 0:01:14]}  Rab8 {[%clk 0:00:47]} 28. Bc6 {[%clk 0:01:12]}  Ne3 {[%clk 0:00:35]} 29. Qe2 {[%clk 0:01:12]}  Nxc2 {[%clk 0:00:36]} 30. Be5 {[%clk 0:01:10]}  Bd6 {[%clk 0:00:35]} 31. Bxd6 {[%clk 0:01:06]}  Qxd6 {[%clk 0:00:35]} 32. Nc4 {[%clk 0:01:07]}  Qd4 {[%clk 0:00:33]} 33. Rxa5 {[%clk 0:01:01]}  Qc3 {[%clk 0:00:28]} 34. e7 {[%clk 0:00:59]}  Rfe8 {[%clk 0:00:26]} 35. Bxe8 {[%clk 0:00:54]}  Rxe8 {[%clk 0:00:27]} 36. Ra7 {[%clk 0:00:24]}  Nd4 {[%clk 0:00:25]} 37. Qe3 {[%clk 0:00:19]}  Qxb3 {[%clk 0:00:18]} 38. Rd7 {[%clk 0:00:13]}  Qxb5 {[%clk 0:00:12]} 39. Rd8 {[%clk 0:00:13]}  Qb7+ {[%clk 0:00:10]} 40. Kg1 {[%clk 0:00:12]}  Rxe7 {[%clk 0:00:10]} 41. Rb8 {[%clk 0:00:05]}  Qa7 {[%clk 0:00:06]} 42. Ra8 {[%clk 0:00:03]}  Qxa8 {[%clk 0:00:05]} 43. Qxe7 {[%clk 0:00:03]}  Qf3 {[%clk 0:00:05]} 44. h4 {[%clk 0:00:00]}  Ne2+ {[%clk 0:00:05]} 0-1

[Event "January 2 Early 2024"]
[Site "https://www.chess.com"]
[Date "2024.01.02"]
[Round "10"]
[White "Zhigalko, Sergei"]
[Black "Zemlyanskii, Ivan"]
[Result "1/2-1/2"]
[Board "13"]
[TimeControl "180+1"]
[WhiteFideId "13502956"]
[BlackFideId "24249971"]
[WhiteElo "2912"]
[BlackElo "2999"]
[WhiteTeam "BLR"]
[BlackTeam "RUS"]
[WhiteClock "0:00:23"]
[BlackClock "0:00:15"]

1. e4 {[%clk 0:03:00]}  c5 {[%clk 0:03:00]} 2. c3 {[%clk 0:02:58]}  d5 {[%clk 0:02:59]} 3. exd5 {[%clk 0:02:58]}  Qxd5 {[%clk 0:03:00]} 4. d4 {[%clk 0:02:59]}  Nf6 {[%clk 0:03:01]} 5. Nf3 {[%clk 0:02:59]}  e6 {[%clk 0:03:01]} 6. Na3 {[%clk 0:02:56]}  Qd8 {[%clk 0:03:01]} 7. Nc4 {[%clk 0:02:51]}  Nc6 {[%clk 0:03:00]} 8. Be3 {[%clk 0:02:44]}  Nd5 {[%clk 0:02:59]} 9. Bd3 {[%clk 0:02:45]}  Bd7 {[%clk 0:02:59]} 10. O-O {[%clk 0:02:39]}  cxd4 {[%clk 0:02:55]} 11. Nxd4 {[%clk 0:02:24]}  Be7 {[%clk 0:02:34]} 12. Be4 {[%clk 0:01:35]}  Nxe3 {[%clk 0:01:42]} 13. fxe3 {[%clk 0:01:35]}  O-O {[%clk 0:01:43]} 14. Qf3 {[%clk 0:01:23]}  Qc8 {[%clk 0:01:35]} 15. Nb5 {[%clk 0:01:09]}  Nd4 {[%clk 0:00:53]} 16. cxd4 {[%clk 0:00:18]}  Qxc4 {[%clk 0:00:51]} 17. Nc3 {[%clk 0:00:18]}  Qb4 {[%clk 0:00:45]} 18. Rf2 {[%clk 0:00:14]}  Rab8 {[%clk 0:00:42]} 19. Rc1 {[%clk 0:00:13]}  b5 {[%clk 0:00:33]} 20. Bd3 {[%clk 0:00:08]}  a6 {[%clk 0:00:29]} 21. Ne4 {[%clk 0:00:04]}  Rbc8 {[%clk 0:00:23]} 22. Rcf1 {[%clk 0:00:03]}  Bc6 {[%clk 0:00:15]} 23. Qf4 {[%clk 0:00:03]}  Bxe4 {[%clk 0:00:12]} 24. Qxe4 {[%clk 0:00:03]}  g6 {[%clk 0:00:12]} 25. Bc2 {[%clk 0:00:02]}  Qxb2 {[%clk 0:00:08]} 26. Bb3 {[%clk 0:00:03]}  Qa3 {[%clk 0:00:06]} 27. Qb7 {[%clk 0:00:03]}  Qd6 {[%clk 0:00:05]} 28. Rxf7 {[%clk 0:00:03]}  Rxf7 {[%clk 0:00:04]} 29. Qxc8+ {[%clk 0:00:03]}  Kg7 {[%clk 0:00:04]} 30. Rxf7+ {[%clk 0:00:03]}  Kxf7 {[%clk 0:00:05]} 31. g3 {[%clk 0:00:04]}  Bg5 {[%clk 0:00:04]} 32. Kf2 {[%clk 0:00:03]}  a5 {[%clk 0:00:03]} 33. Qb7+ {[%clk 0:00:03]}  Kf6 {[%clk 0:00:04]} 34. Qxb5 {[%clk 0:00:03]}  Qb4 {[%clk 0:00:03]} 35. Qxb4 {[%clk 0:00:03]}  axb4 {[%clk 0:00:04]} 36. Kf3 {[%clk 0:00:03]}  e5 {[%clk 0:00:03]} 37. d5 {[%clk 0:00:03]}  Ke7 {[%clk 0:00:04]} 38. Ke4 {[%clk 0:00:03]}  Kd6 {[%clk 0:00:04]} 39. Ba4 {[%clk 0:00:03]}  Bf6 {[%clk 0:00:03]} 40. Bc6 {[%clk 0:00:03]}  Kc5 {[%clk 0:00:04]} 41. Kd3 {[%clk 0:00:03]}  Be7 {[%clk 0:00:04]} 42. e4 {[%clk 0:00:03]}  Bd8 {[%clk 0:00:03]} 43. Bd7 {[%clk 0:00:04]}  Bg5 {[%clk 0:00:03]} 44. Be6 {[%clk 0:00:04]}  Be7 {[%clk 0:00:02]} 45. Bf7 {[%clk 0:00:04]}  Kd6 {[%clk 0:00:02]} 46. Be6 {[%clk 0:00:04]}  Kc7 {[%clk 0:00:02]} 47. Kc4 {[%clk 0:00:04]}  Bd6 {[%clk 0:00:02]} 48. Bf7 {[%clk 0:00:04]}  Be7 {[%clk 0:00:02]} 49. Kb5 {[%clk 0:00:05]}  Bd6 {[%clk 0:00:03]} 50. Bg8 {[%clk 0:00:05]}  h6 {[%clk 0:00:03]} 51. Bf7 {[%clk 0:00:06]}  g5 {[%clk 0:00:04]} 52. Bh5 {[%clk 0:00:06]}  Be7 {[%clk 0:00:04]} 53. Kc4 {[%clk 0:00:07]}  Bd6 {[%clk 0:00:04]} 54. Bd1 {[%clk 0:00:07]}  Kd8 {[%clk 0:00:04]} 55. Kb5 {[%clk 0:00:07]}  Kc7 {[%clk 0:00:05]} 56. Ka6 {[%clk 0:00:08]}  Be7 {[%clk 0:00:05]} 57. Ba4 {[%clk 0:00:06]}  Bc5 {[%clk 0:00:04]} 58. Kb5 {[%clk 0:00:06]}  Be7 {[%clk 0:00:04]} 59. Bd1 {[%clk 0:00:06]}  Bd6 {[%clk 0:00:04]} 60. Kc4 {[%clk 0:00:06]}  Kd8 {[%clk 0:00:05]} 61. Ba4 {[%clk 0:00:07]}  Be7 {[%clk 0:00:04]} 62. Kb5 {[%clk 0:00:07]}  Kc7 {[%clk 0:00:04]} 63. Bb3 {[%clk 0:00:07]}  Bd6 {[%clk 0:00:05]} 64. Bc2 {[%clk 0:00:07]}  Bf8 {[%clk 0:00:05]} 65. Ba4 {[%clk 0:00:07]}  Bd6 {[%clk 0:00:06]} 66. Kc4 {[%clk 0:00:08]}  Bf8 {[%clk 0:00:06]} 67. Kd3 {[%clk 0:00:09]}  Kd8 {[%clk 0:00:06]} 68. Ke3 {[%clk 0:00:10]}  Ke7 {[%clk 0:00:05]} 69. Kf3 {[%clk 0:00:10]}  Kf6 {[%clk 0:00:06]} 70. Kg4 {[%clk 0:00:11]}  Bd6 {[%clk 0:00:06]} 71. Bd7 {[%clk 0:00:11]}  Be7 {[%clk 0:00:06]} 72. Kh5 {[%clk 0:00:10]}  Kg7 {[%clk 0:00:06]} 73. Ba4 {[%clk 0:00:11]}  Bd6 {[%clk 0:00:07]} 74. Bb3 {[%clk 0:00:11]}  Be7 {[%clk 0:00:07]} 75. Kg4 {[%clk 0:00:12]}  Kf6 {[%clk 0:00:07]} 76. Ba4 {[%clk 0:00:12]}  Bd6 {[%clk 0:00:07]} 77. Kh5 {[%clk 0:00:13]}  Kg7 {[%clk 0:00:07]} 78. Bd1 {[%clk 0:00:13]}  Be7 {[%clk 0:00:07]} 79. Kg4 {[%clk 0:00:13]}  Kf6 {[%clk 0:00:07]} 80. Be2 {[%clk 0:00:13]}  Bd6 {[%clk 0:00:08]} 81. Bd1 {[%clk 0:00:13]}  Be7 {[%clk 0:00:08]} 82. Kf3 {[%clk 0:00:14]}  Bd6 {[%clk 0:00:09]} 83. Ke2 {[%clk 0:00:14]}  Ke7 {[%clk 0:00:09]} 84. Kd3 {[%clk 0:00:15]}  Kd7 {[%clk 0:00:10]} 85. Bg4+ {[%clk 0:00:15]}  Ke7 {[%clk 0:00:10]} 86. Kc4 {[%clk 0:00:14]}  Kd8 {[%clk 0:00:10]} 87. Be6 {[%clk 0:00:14]}  Kc7 {[%clk 0:00:10]} 88. Kd3 {[%clk 0:00:14]}  Kd8 {[%clk 0:00:10]} 89. Ke2 {[%clk 0:00:14]}  Ke7 {[%clk 0:00:11]} 90. Bc8 {[%clk 0:00:15]}  Kf6 {[%clk 0:00:10]} 91. Kd3 {[%clk 0:00:14]}  Ke7 {[%clk 0:00:10]} 92. Kc4 {[%clk 0:00:15]}  Kd8 {[%clk 0:00:11]} 93. Bh3 {[%clk 0:00:13]}  Kc7 {[%clk 0:00:11]} 94. Kd3 {[%clk 0:00:13]}  Kd8 {[%clk 0:00:12]} 95. Ke3 {[%clk 0:00:13]}  Ke7 {[%clk 0:00:12]} 96. Ke2 {[%clk 0:00:14]}  Kf6 {[%clk 0:00:12]} 97. Kd3 {[%clk 0:00:14]}  Ke7 {[%clk 0:00:13]} 98. Kc4 {[%clk 0:00:14]}  Kd8 {[%clk 0:00:13]} 99. Kb5 {[%clk 0:00:15]}  Kc7 {[%clk 0:00:13]} 100. Bf5 {[%clk 0:00:16]}  Be7 {[%clk 0:00:14]} 101. h3 {[%clk 0:00:16]}  Bd6 {[%clk 0:00:14]} 102. h4 {[%clk 0:00:16]}  gxh4 {[%clk 0:00:13]} 103. gxh4 {[%clk 0:00:17]}  Be7 {[%clk 0:00:13]} 104. Kc4 {[%clk 0:00:17]}  Bd6 {[%clk 0:00:13]} 105. Be6 {[%clk 0:00:16]}  Kd8 {[%clk 0:00:13]} 106. h5 {[%clk 0:00:16]}  Be7 {[%clk 0:00:13]} 107. Kb5 {[%clk 0:00:16]}  Kc7 {[%clk 0:00:12]} 108. Kc4 {[%clk 0:00:16]}  Bd6 {[%clk 0:00:12]} 109. Kd3 {[%clk 0:00:17]}  Kd8 {[%clk 0:00:12]} 110. Ke2 {[%clk 0:00:18]}  Ke7 {[%clk 0:00:13]} 111. Kf3 {[%clk 0:00:18]}  Kf6 {[%clk 0:00:13]} 112. Kg4 {[%clk 0:00:19]}  Bc5 {[%clk 0:00:14]} 113. Bd7 {[%clk 0:00:19]}  Bd6 {[%clk 0:00:14]} 114. Ba4 {[%clk 0:00:20]}  Bc5 {[%clk 0:00:13]} 115. Bb3 {[%clk 0:00:20]}  Bd6 {[%clk 0:00:13]} 116. Bc4 {[%clk 0:00:21]}  Bc5 {[%clk 0:00:14]} 117. Bb3 {[%clk 0:00:21]}  Bd6 {[%clk 0:00:14]} 118. Bc4 {[%clk 0:00:22]}  Bc5 {[%clk 0:00:15]} 119. Bb3 {[%clk 0:00:23]} 1/2-1/2

[Event "January 2 Early 2024"]
[Site "https://www.chess.com"]
[Date "2024.01.02"]
[Round "10"]
[White "Navara, David"]
[Black "Gokerkan, Cem Kaan"]
[Result "1-0"]
[Board "15"]
[TimeControl "180+1"]
[WhiteFideId "309095"]
[BlackFideId "6336760"]
[WhiteElo "2987"]
[BlackElo "2851"]
[WhiteTeam "CZE"]
[BlackTeam "TUR"]
[WhiteClock "0:02:39"]
[BlackClock "0:01:48"]

1. d4 {[%clk 0:03:00]}  Nf6 {[%clk 0:03:00]} 2. c4 {[%clk 0:03:01]}  g6 {[%clk 0:03:00]} 3. Nc3 {[%clk 0:03:01]}  Bg7 {[%clk 0:03:01]} 4. e4 {[%clk 0:03:01]}  O-O {[%clk 0:03:01]} 5. Nf3 {[%clk 0:03:02]}  d6 {[%clk 0:03:00]} 6. Be2 {[%clk 0:03:03]}  e5 {[%clk 0:03:00]} 7. O-O {[%clk 0:03:04]}  exd4 {[%clk 0:03:01]} 8. Nxd4 {[%clk 0:03:05]}  Re8 {[%clk 0:03:01]} 9. f3 {[%clk 0:03:04]}  Nc6 {[%clk 0:03:02]} 10. Nc2 {[%clk 0:02:57]}  Nh5 {[%clk 0:02:57]} 11. Kh1 {[%clk 0:02:45]}  Qh4 {[%clk 0:02:47]} 12. Qe1 {[%clk 0:02:45]}  Qxe1 {[%clk 0:02:46]} 13. Rxe1 {[%clk 0:02:46]}  Bxc3 {[%clk 0:02:45]} 14. bxc3 {[%clk 0:02:46]}  b6 {[%clk 0:02:45]} 15. Nb4 {[%clk 0:02:42]}  Bd7 {[%clk 0:02:08]} 16. Nd5 {[%clk 0:02:42]}  Rec8 {[%clk 0:01:48]} 17. g4 {[%clk 0:02:39]} 1-0